[Event "Titled Tuesday Blitz April 11 Early 2023"]
[White "Ahn, Hongjin"]
[Black "Marcziter, Dmitrii"]
[WhiteFideId "13201492"]
[BlackFideId "13900765"]
[WhiteElo "2182"]
[BlackElo "2162"]
[Result "1-0"]
[Round "07"]
[TimeControl "180+2"]
[Date "2023.04.11"]
[WhiteClock "0:00:07"]
[BlackClock "0:01:18"]

1. b4 {[%clk 0:03:00]}  e5 {[%clk 0:02:59]} 2. Bb2 {[%clk 0:02:58]}  Bd6 {[%clk 0:02:58]} 3. c4 {[%clk 0:02:54]}  c6 {[%clk 0:02:58]} 4. c5 {[%clk 0:02:42]}  Bc7 {[%clk 0:02:58]} 5. d4 {[%clk 0:02:42]}  Qe7 {[%clk 0:02:57]} 6. Nc3 {[%clk 0:02:38]}  Nf6 {[%clk 0:02:53]} 7. dxe5 {[%clk 0:02:29]}  Bxe5 {[%clk 0:02:51]} 8. Nf3 {[%clk 0:02:29]}  Bc7 {[%clk 0:02:49]} 9. Qd4 {[%clk 0:02:29]}  d5 {[%clk 0:02:47]} 10. e3 {[%clk 0:02:18]}  Bf5 {[%clk 0:02:45]} 11. Be2 {[%clk 0:02:13]}  Nbd7 {[%clk 0:02:45]} 12. h3 {[%clk 0:01:46]}  h6 {[%clk 0:02:38]} 13. a3 {[%clk 0:01:23]}  a5 {[%clk 0:02:37]} 14. g4 {[%clk 0:01:16]}  Bh7 {[%clk 0:02:35]} 15. Kf1 {[%clk 0:01:12]}  axb4 {[%clk 0:02:33]} 16. axb4 {[%clk 0:01:11]}  Rxa1+ {[%clk 0:02:33]} 17. Bxa1 {[%clk 0:01:12]}  O-O {[%clk 0:02:32]} 18. h4 {[%clk 0:00:59]}  Ne8 {[%clk 0:02:28]} 19. h5 {[%clk 0:00:48]}  Be4 {[%clk 0:02:24]} 20. g5 {[%clk 0:00:19]}  hxg5 {[%clk 0:02:11]} 21. h6 {[%clk 0:00:17]}  f6 {[%clk 0:02:06]} 22. hxg7 {[%clk 0:00:05]}  Nxg7 {[%clk 0:01:49]} 23. Nxe4 {[%clk 0:00:05]}  dxe4 {[%clk 0:01:31]} 24. Bc4+ {[%clk 0:00:05]}  Ne6 {[%clk 0:01:31]} 25. Qxe4 {[%clk 0:00:06]}  Re8 {[%clk 0:01:24]} 26. Bxe6+ {[%clk 0:00:06]}  Qxe6 {[%clk 0:01:21]} 27. Qg6+ {[%clk 0:00:06]}  Kf8 {[%clk 0:01:21]} 28. Rh8+ {[%clk 0:00:07]}  Ke7 {[%clk 0:01:18]} 29. Rxe8# {[%clk 0:00:07]} 1-0


[Site "https://www.chess.com"]

[Event "Titled Tuesday Blitz April 11 Early 2023"]
[White "Liew, Chee-Meng Jimmy"]
[Black "Ljukin, Sergei"]
[WhiteFideId "5700019"]
[BlackFideId "14102200"]
[WhiteElo "2245"]
[BlackElo "2312"]
[Result "1-0"]
[Round "07"]
[TimeControl "180+2"]
[Date "2023.04.11"]
[WhiteClock "0:02:07"]
[BlackClock "0:00:03"]

1. d4 {[%clk 0:03:00]}  d5 {[%clk 0:02:22]} 2. Nc3 {[%clk 0:03:01]}  Nf6 {[%clk 0:02:21]} 3. Bg5 {[%clk 0:03:00]}  Nbd7 {[%clk 0:02:21]} 4. Qd3 {[%clk 0:03:00]}  h6 {[%clk 0:02:18]} 5. Bh4 {[%clk 0:02:59]}  g5 {[%clk 0:01:49]} 6. Bg3 {[%clk 0:02:59]}  e6 {[%clk 0:01:49]} 7. e4 {[%clk 0:02:59]}  Bb4 {[%clk 0:01:50]} 8. e5 {[%clk 0:02:58]}  Ne4 {[%clk 0:01:49]} 9. a3 {[%clk 0:02:58]}  Bxc3+ {[%clk 0:01:48]} 10. bxc3 {[%clk 0:02:59]}  c5 {[%clk 0:01:46]} 11. f3 {[%clk 0:02:56]}  c4 {[%clk 0:01:41]} 12. Qe3 {[%clk 0:02:54]}  Nxg3 {[%clk 0:01:39]} 13. hxg3 {[%clk 0:02:52]}  Nf8 {[%clk 0:01:30]} 14. f4 {[%clk 0:02:46]}  Ng6 {[%clk 0:01:14]} 15. Nf3 {[%clk 0:02:42]}  Bd7 {[%clk 0:00:33]} 16. Be2 {[%clk 0:02:41]}  Qb6 {[%clk 0:00:30]} 17. fxg5 {[%clk 0:02:34]}  hxg5 {[%clk 0:00:30]} 18. Rxh8+ {[%clk 0:02:35]}  Nxh8 {[%clk 0:00:30]} 19. Kf2 {[%clk 0:02:32]}  O-O-O {[%clk 0:00:25]} 20. Nxg5 {[%clk 0:02:29]}  Qb2 {[%clk 0:00:19]} 21. Rh1 {[%clk 0:02:25]}  Ng6 {[%clk 0:00:17]} 22. Rh7 {[%clk 0:02:16]}  Qxc2 {[%clk 0:00:15]} 23. Rxf7 {[%clk 0:02:14]}  Rf8 {[%clk 0:00:14]} 24. Rxf8+ {[%clk 0:02:13]}  Nxf8 {[%clk 0:00:14]} 25. Qf4 {[%clk 0:02:12]}  Qf5 {[%clk 0:00:12]} 26. Qxf5 {[%clk 0:02:11]}  exf5 {[%clk 0:00:13]} 27. Bf3 {[%clk 0:02:10]}  Bc6 {[%clk 0:00:11]} 28. Nf7 {[%clk 0:02:11]}  Kd7 {[%clk 0:00:10]} 29. Nd6 {[%clk 0:02:11]}  Ke6 {[%clk 0:00:09]} 30. g4 {[%clk 0:02:11]}  f4 {[%clk 0:00:07]} 31. g5 {[%clk 0:02:11]}  Ng6 {[%clk 0:00:06]} 32. Bg4+ {[%clk 0:02:11]}  Ke7 {[%clk 0:00:06]} 33. Kf3 {[%clk 0:02:09]}  Bd7 {[%clk 0:00:04]} 34. Bxd7 {[%clk 0:02:09]}  Kxd7 {[%clk 0:00:04]} 35. Kg4 {[%clk 0:02:09]}  Ke6 {[%clk 0:00:03]} 36. Nxb7 {[%clk 0:02:07]} 1-0


[Site "https://www.chess.com"]

[Event "Titled Tuesday Blitz April 11 Early 2023"]
[White "Bocharov, Dmitry"]
[Black "Palacio,Igor Da Paz"]
[WhiteFideId "4138716"]
[BlackFideId "2121140"]
[WhiteElo "2469"]
[BlackElo "2126"]
[Result "1-0"]
[Round "07"]
[TimeControl "180+2"]
[Date "2023.04.11"]
[WhiteClock "0:01:33"]
[BlackClock "0:00:03"]

1. d4 {[%clk 0:03:00]}  Nf6 {[%clk 0:02:59]} 2. c4 {[%clk 0:03:00]}  g6 {[%clk 0:02:59]} 3. g3 {[%clk 0:02:59]}  Bg7 {[%clk 0:02:59]} 4. Bg2 {[%clk 0:02:55]}  d6 {[%clk 0:03:00]} 5. Nc3 {[%clk 0:02:55]}  O-O {[%clk 0:03:00]} 6. Nf3 {[%clk 0:02:56]}  a6 {[%clk 0:03:00]} 7. O-O {[%clk 0:02:56]}  Nbd7 {[%clk 0:02:57]} 8. e4 {[%clk 0:02:54]}  e5 {[%clk 0:02:57]} 9. Qc2 {[%clk 0:02:55]}  exd4 {[%clk 0:02:53]} 10. Nxd4 {[%clk 0:02:55]}  Re8 {[%clk 0:02:54]} 11. Rd1 {[%clk 0:02:54]}  Rb8 {[%clk 0:02:37]} 12. h3 {[%clk 0:02:48]}  h6 {[%clk 0:02:34]} 13. Be3 {[%clk 0:02:46]}  Kh7 {[%clk 0:02:33]} 14. b3 {[%clk 0:02:40]}  Ng8 {[%clk 0:02:18]} 15. Rac1 {[%clk 0:02:39]}  Ne7 {[%clk 0:02:14]} 16. Qd2 {[%clk 0:02:31]}  Nc6 {[%clk 0:02:11]} 17. f4 {[%clk 0:02:28]}  Nxd4 {[%clk 0:02:01]} 18. Bxd4 {[%clk 0:02:29]}  Bxd4+ {[%clk 0:01:59]} 19. Qxd4 {[%clk 0:02:28]}  Qe7 {[%clk 0:01:50]} 20. Nd5 {[%clk 0:02:26]}  Qd8 {[%clk 0:01:51]} 21. b4 {[%clk 0:02:22]}  c6 {[%clk 0:01:47]} 22. Ne3 {[%clk 0:02:21]}  Qb6 {[%clk 0:01:32]} 23. Qxb6 {[%clk 0:02:18]}  Nxb6 {[%clk 0:01:31]} 24. Rxd6 {[%clk 0:02:18]}  Be6 {[%clk 0:01:24]} 25. c5 {[%clk 0:02:17]}  Nc8 {[%clk 0:01:15]} 26. Rd2 {[%clk 0:02:16]}  Ne7 {[%clk 0:01:15]} 27. a3 {[%clk 0:02:15]}  Kg7 {[%clk 0:01:09]} 28. Kf2 {[%clk 0:02:13]}  f5 {[%clk 0:01:06]} 29. e5 {[%clk 0:02:11]}  h5 {[%clk 0:00:56]} 30. a4 {[%clk 0:02:04]}  Rbd8 {[%clk 0:00:53]} 31. Rcd1 {[%clk 0:02:01]}  Rxd2+ {[%clk 0:00:52]} 32. Rxd2 {[%clk 0:02:02]}  Ra8 {[%clk 0:00:48]} 33. a5 {[%clk 0:01:54]}  Kf7 {[%clk 0:00:47]} 34. Bf1 {[%clk 0:01:50]}  Rh8 {[%clk 0:00:44]} 35. h4 {[%clk 0:01:44]}  Nd5 {[%clk 0:00:39]} 36. Bc4 {[%clk 0:01:39]}  Nxb4 {[%clk 0:00:22]} 37. Rd7+ {[%clk 0:01:36]}  Ke8 {[%clk 0:00:10]} 38. Bxe6 {[%clk 0:01:35]}  Rh7 {[%clk 0:00:03]} 39. Rxh7 {[%clk 0:01:33]} 1-0


[Site "https://www.chess.com"]

[Event "Titled Tuesday Blitz April 11 Early 2023"]
[White "Sowul, Bartosz"]
[Black "Manukyan, Sargis A."]
[WhiteFideId "1137590"]
[BlackFideId "13303970"]
[WhiteElo "2188"]
[BlackElo "2187"]
[Result "1-0"]
[Round "07"]
[TimeControl "180+2"]
[Date "2023.04.11"]
[WhiteClock "0:00:21"]
[BlackClock "0:00:19"]

1. e4 {[%clk 0:03:00]}  c5 {[%clk 0:02:59]} 2. Nc3 {[%clk 0:03:01]}  d6 {[%clk 0:02:58]} 3. d4 {[%clk 0:03:00]}  cxd4 {[%clk 0:02:59]} 4. Qxd4 {[%clk 0:03:01]}  Nc6 {[%clk 0:02:59]} 5. Qd2 {[%clk 0:03:01]}  g6 {[%clk 0:02:59]} 6. b3 {[%clk 0:03:02]}  Bh6 {[%clk 0:02:59]} 7. f4 {[%clk 0:03:02]}  Nf6 {[%clk 0:02:58]} 8. Bb2 {[%clk 0:03:02]}  O-O {[%clk 0:02:59]} 9. O-O-O {[%clk 0:03:01]}  e5 {[%clk 0:03:00]} 10. g3 {[%clk 0:03:01]}  Nh5 {[%clk 0:02:59]} 11. Kb1 {[%clk 0:02:57]}  exf4 {[%clk 0:02:59]} 12. Nd5 {[%clk 0:02:56]}  Be6 {[%clk 0:02:45]} 13. gxf4 {[%clk 0:02:43]}  Bxd5 {[%clk 0:02:43]} 14. exd5 {[%clk 0:02:44]}  Bxf4 {[%clk 0:02:35]} 15. Qf2 {[%clk 0:02:30]}  Ne5 {[%clk 0:02:32]} 16. Be2 {[%clk 0:02:29]}  Bh6 {[%clk 0:02:18]} 17. Bxh5 {[%clk 0:02:12]}  gxh5 {[%clk 0:02:19]} 18. Ne2 {[%clk 0:02:00]}  Ng6 {[%clk 0:01:59]} 19. Bf6 {[%clk 0:01:49]}  Qd7 {[%clk 0:01:50]} 20. Nd4 {[%clk 0:01:32]}  Bg7 {[%clk 0:01:27]} 21. Rdf1 {[%clk 0:01:25]}  Bxf6 {[%clk 0:01:14]} 22. Qxf6 {[%clk 0:01:25]}  Qd8 {[%clk 0:01:15]} 23. Qf3 {[%clk 0:01:22]}  Kh8 {[%clk 0:00:52]} 24. Nf5 {[%clk 0:01:12]}  Ne5 {[%clk 0:00:40]} 25. Qxh5 {[%clk 0:01:10]}  Rg8 {[%clk 0:00:40]} 26. Rf4 {[%clk 0:00:54]}  Rg6 {[%clk 0:00:37]} 27. Rh4 {[%clk 0:00:51]}  Qg8 {[%clk 0:00:37]} 28. Ne7 {[%clk 0:00:44]}  Qg7 {[%clk 0:00:33]} 29. Nxg6+ {[%clk 0:00:34]}  fxg6 {[%clk 0:00:34]} 30. Qe2 {[%clk 0:00:33]}  a5 {[%clk 0:00:35]} 31. a4 {[%clk 0:00:33]}  Rb8 {[%clk 0:00:32]} 32. Rf1 {[%clk 0:00:32]}  b6 {[%clk 0:00:26]} 33. Rhf4 {[%clk 0:00:32]}  h5 {[%clk 0:00:26]} 34. Rf6 {[%clk 0:00:31]}  Rd8 {[%clk 0:00:24]} 35. Qe3 {[%clk 0:00:28]}  Kh7 {[%clk 0:00:24]} 36. Qxb6 {[%clk 0:00:28]}  Rd7 {[%clk 0:00:24]} 37. Rxd6 {[%clk 0:00:27]}  Re7 {[%clk 0:00:19]} 38. Qd4 {[%clk 0:00:26]}  Ng4 {[%clk 0:00:13]} 39. Qxg7+ {[%clk 0:00:26]}  Kxg7 {[%clk 0:00:14]} 40. Re6 {[%clk 0:00:25]}  Rd7 {[%clk 0:00:14]} 41. h3 {[%clk 0:00:24]}  Nh6 {[%clk 0:00:13]} 42. Rff6 {[%clk 0:00:24]}  Nf5 {[%clk 0:00:13]} 43. Rxg6+ {[%clk 0:00:24]}  Kh7 {[%clk 0:00:14]} 44. d6 {[%clk 0:00:22]}  Nd4 {[%clk 0:00:14]} 45. Re7+ {[%clk 0:00:22]}  Kxg6 {[%clk 0:00:11]} 46. Rxd7 {[%clk 0:00:22]}  Ne6 {[%clk 0:00:11]} 47. Re7 {[%clk 0:00:22]}  Kf6 {[%clk 0:00:12]} 48. Re8 {[%clk 0:00:22]}  Nc5 {[%clk 0:00:12]} 49. Rh8 {[%clk 0:00:21]}  Ke6 {[%clk 0:00:12]} 50. Rxh5 {[%clk 0:00:21]}  Nd7 {[%clk 0:00:12]} 51. Rxa5 {[%clk 0:00:20]}  Kxd6 {[%clk 0:00:13]} 52. c4 {[%clk 0:00:19]}  Kc6 {[%clk 0:00:13]} 53. h4 {[%clk 0:00:19]}  Nf8 {[%clk 0:00:12]} 54. h5 {[%clk 0:00:19]}  Kb6 {[%clk 0:00:12]} 55. Rb5+ {[%clk 0:00:19]}  Ka6 {[%clk 0:00:12]} 56. h6 {[%clk 0:00:20]}  Nh7 {[%clk 0:00:11]} 57. Rf5 {[%clk 0:00:20]}  Kb6 {[%clk 0:00:11]} 58. Rf7 {[%clk 0:00:21]}  Ng5 {[%clk 0:00:11]} 59. Rf6+ {[%clk 0:00:21]}  Ka5 {[%clk 0:00:11]} 60. Rg6 {[%clk 0:00:21]}  Kb4 {[%clk 0:00:12]} 61. Rxg5 {[%clk 0:00:21]}  Ka3 {[%clk 0:00:13]} 62. a5 {[%clk 0:00:21]}  Kb4 {[%clk 0:00:14]} 63. a6 {[%clk 0:00:22]}  Ka3 {[%clk 0:00:14]} 64. a7 {[%clk 0:00:22]}  Kb4 {[%clk 0:00:15]} 65. a8=Q {[%clk 0:00:22]}  Kc3 {[%clk 0:00:16]} 66. Qa5+ {[%clk 0:00:21]}  Kd3 {[%clk 0:00:16]} 67. Rd5+ {[%clk 0:00:21]}  Ke2 {[%clk 0:00:17]} 68. Qd8 {[%clk 0:00:20]}  Kf3 {[%clk 0:00:18]} 69. Qf6+ {[%clk 0:00:20]}  Kg2 {[%clk 0:00:19]} 70. Rg5+ {[%clk 0:00:20]}  Kh1 {[%clk 0:00:19]} 71. Qf3+ {[%clk 0:00:20]}  Kh2 {[%clk 0:00:19]} 72. Qh5# {[%clk 0:00:21]} 1-0


[Site "https://www.chess.com"]

[Event "Titled Tuesday Blitz April 11 Early 2023"]
[White "Janaszak, Dawid"]
[Black "Nurgaliyeva, Zarina"]
[WhiteFideId "1119206"]
[BlackFideId "13730096"]
[WhiteElo "2220"]
[BlackElo "2134"]
[Result "0-1"]
[Round "07"]
[TimeControl "180+2"]
[Date "2023.04.11"]
[WhiteClock "0:01:41"]
[BlackClock "0:00:35"]

1. e4 {[%clk 0:02:58]}  e5 {[%clk 0:02:58]} 2. Nf3 {[%clk 0:02:55]}  Nc6 {[%clk 0:02:58]} 3. d4 {[%clk 0:02:55]}  exd4 {[%clk 0:02:58]} 4. Nxd4 {[%clk 0:02:56]}  Qf6 {[%clk 0:02:57]} 5. Nf3 {[%clk 0:02:54]}  Bb4+ {[%clk 0:02:56]} 6. c3 {[%clk 0:02:54]}  Bc5 {[%clk 0:02:56]} 7. Bd3 {[%clk 0:02:46]}  h6 {[%clk 0:02:50]} 8. O-O {[%clk 0:02:45]}  Nge7 {[%clk 0:02:47]} 9. b4 {[%clk 0:02:44]}  Bb6 {[%clk 0:02:13]} 10. b5 {[%clk 0:02:31]}  Ne5 {[%clk 0:02:10]} 11. Nxe5 {[%clk 0:02:31]}  Qxe5 {[%clk 0:02:11]} 12. Nd2 {[%clk 0:02:31]}  Qxc3 {[%clk 0:01:59]} 13. Nb3 {[%clk 0:02:31]}  O-O {[%clk 0:01:56]} 14. Ba3 {[%clk 0:02:27]}  d6 {[%clk 0:01:53]} 15. Rc1 {[%clk 0:02:24]}  Qf6 {[%clk 0:01:51]} 16. Qe2 {[%clk 0:02:24]}  Ng6 {[%clk 0:01:47]} 17. g3 {[%clk 0:02:24]}  Bh3 {[%clk 0:01:40]} 18. Rfe1 {[%clk 0:02:24]}  Ne5 {[%clk 0:01:40]} 19. Red1 {[%clk 0:02:10]}  Bg4 {[%clk 0:01:29]} 20. Qf1 {[%clk 0:02:09]}  Bxd1 {[%clk 0:01:29]} 21. Rxd1 {[%clk 0:02:10]}  Ng4 {[%clk 0:01:25]} 22. Kg2 {[%clk 0:01:59]}  Nxf2 {[%clk 0:01:22]} 23. Rd2 {[%clk 0:01:56]}  Nxd3 {[%clk 0:01:13]} 24. Qxd3 {[%clk 0:01:56]}  Rfe8 {[%clk 0:01:10]} 25. Bb2 {[%clk 0:01:56]}  Qe6 {[%clk 0:01:09]} 26. Re2 {[%clk 0:01:57]}  d5 {[%clk 0:01:06]} 27. e5 {[%clk 0:01:56]}  a6 {[%clk 0:01:01]} 28. bxa6 {[%clk 0:01:48]}  Rxa6 {[%clk 0:01:01]} 29. a3 {[%clk 0:01:49]}  c5 {[%clk 0:00:55]} 30. Qb5 {[%clk 0:01:46]}  Qc6 {[%clk 0:00:50]} 31. a4 {[%clk 0:01:42]}  Qxb5 {[%clk 0:00:48]} 32. axb5 {[%clk 0:01:43]}  Ra2 {[%clk 0:00:48]} 33. Nc1 {[%clk 0:01:43]}  Ra5 {[%clk 0:00:46]} 34. Nd3 {[%clk 0:01:42]}  Rxb5 {[%clk 0:00:44]} 35. Nf4 {[%clk 0:01:41]}  c4 {[%clk 0:00:41]} 36. e6 {[%clk 0:01:42]}  fxe6 {[%clk 0:00:39]} 37. Nh5 {[%clk 0:01:42]}  d4 {[%clk 0:00:38]} 38. Kh3 {[%clk 0:01:39]}  c3 {[%clk 0:00:37]} 39. Bc1 {[%clk 0:01:40]}  d3 {[%clk 0:00:36]} 40. Ra2 {[%clk 0:01:40]}  Rxh5+ {[%clk 0:00:34]} 41. Kg4 {[%clk 0:01:40]}  Rd5 {[%clk 0:00:35]} 42. Bf4 {[%clk 0:01:41]}  d2 {[%clk 0:00:35]} 0-1


[Site "https://www.chess.com"]

[Event "Titled Tuesday Blitz April 11 Early 2023"]
[White "Harriott, Tyrell"]
[Black "Garv Gaur"]
[WhiteFideId "2086484"]
[BlackFideId "45030839"]
[WhiteElo "2107"]
[BlackElo "2068"]
[Result "1-0"]
[Round "07"]
[TimeControl "180+2"]
[Date "2023.04.11"]
[WhiteClock "0:00:37"]
[BlackClock "0:00:13"]

1. d4 {[%clk 0:03:00]}  Nf6 {[%clk 0:02:58]} 2. e3 {[%clk 0:03:01]}  c5 {[%clk 0:02:50]} 3. c3 {[%clk 0:03:01]}  d5 {[%clk 0:02:48]} 4. Bd3 {[%clk 0:03:00]}  Nc6 {[%clk 0:02:47]} 5. f4 {[%clk 0:03:00]}  Bg4 {[%clk 0:02:43]} 6. Ne2 {[%clk 0:03:00]}  e6 {[%clk 0:02:42]} 7. Nd2 {[%clk 0:02:59]}  Bd6 {[%clk 0:02:36]} 8. O-O {[%clk 0:02:59]}  cxd4 {[%clk 0:02:23]} 9. exd4 {[%clk 0:02:59]}  Qc7 {[%clk 0:02:23]} 10. Nf3 {[%clk 0:02:59]}  Ne4 {[%clk 0:02:20]} 11. Bxe4 {[%clk 0:02:55]}  dxe4 {[%clk 0:02:20]} 12. Ng5 {[%clk 0:02:55]}  Bf5 {[%clk 0:02:09]} 13. Ng3 {[%clk 0:02:55]}  O-O-O {[%clk 0:01:59]} 14. N5xe4 {[%clk 0:02:53]}  h5 {[%clk 0:01:49]} 15. Qe2 {[%clk 0:02:35]}  Bg4 {[%clk 0:01:39]} 16. Qc4 {[%clk 0:02:29]}  Be7 {[%clk 0:01:39]} 17. h3 {[%clk 0:02:22]}  Bf5 {[%clk 0:01:27]} 18. Nxf5 {[%clk 0:02:21]}  exf5 {[%clk 0:01:28]} 19. Nc5 {[%clk 0:02:18]}  Kb8 {[%clk 0:01:18]} 20. Be3 {[%clk 0:02:12]}  Bd6 {[%clk 0:01:08]} 21. Nd3 {[%clk 0:02:07]}  Qe7 {[%clk 0:01:05]} 22. Bf2 {[%clk 0:02:05]}  Rc8 {[%clk 0:01:03]} 23. Nc5 {[%clk 0:02:01]}  Bxc5 {[%clk 0:00:57]} 24. dxc5 {[%clk 0:02:00]}  Rhd8 {[%clk 0:00:51]} 25. Rad1 {[%clk 0:01:56]}  a6 {[%clk 0:00:31]} 26. b4 {[%clk 0:01:55]}  g5 {[%clk 0:00:26]} 27. fxg5 {[%clk 0:01:30]}  Qxg5 {[%clk 0:00:27]} 28. a4 {[%clk 0:01:20]}  Rg8 {[%clk 0:00:25]} 29. Qd5 {[%clk 0:01:16]}  Rcd8 {[%clk 0:00:23]} 30. Qf3 {[%clk 0:01:15]}  Rxd1 {[%clk 0:00:23]} 31. Rxd1 {[%clk 0:01:14]}  Ne5 {[%clk 0:00:23]} 32. Qd5 {[%clk 0:01:09]}  f4 {[%clk 0:00:23]} 33. Bd4 {[%clk 0:01:05]}  f3 {[%clk 0:00:21]} 34. Qxe5+ {[%clk 0:01:04]}  Qxe5 {[%clk 0:00:18]} 35. Bxe5+ {[%clk 0:01:03]}  Kc8 {[%clk 0:00:19]} 36. Rd2 {[%clk 0:01:03]}  f5 {[%clk 0:00:17]} 37. Kh2 {[%clk 0:01:01]}  fxg2 {[%clk 0:00:16]} 38. Rxg2 {[%clk 0:01:00]}  Re8 {[%clk 0:00:17]} 39. Re2 {[%clk 0:01:00]}  f4 {[%clk 0:00:16]} 40. Kg2 {[%clk 0:01:00]}  Kd7 {[%clk 0:00:15]} 41. Kg1 {[%clk 0:00:58]}  Kc6 {[%clk 0:00:16]} 42. Kf2 {[%clk 0:00:47]}  Kd5 {[%clk 0:00:15]} 43. Bxf4 {[%clk 0:00:46]}  Rf8 {[%clk 0:00:16]} 44. Kg3 {[%clk 0:00:45]}  Kc4 {[%clk 0:00:15]} 45. Be5 {[%clk 0:00:44]}  Kd3 {[%clk 0:00:14]} 46. Rf2 {[%clk 0:00:42]}  Re8 {[%clk 0:00:14]} 47. Rf5 {[%clk 0:00:41]}  Ke4 {[%clk 0:00:13]} 48. Rxh5 {[%clk 0:00:41]}  Rxe5 {[%clk 0:00:12]} 49. Rxe5+ {[%clk 0:00:41]}  Kxe5 {[%clk 0:00:13]} 50. h4 {[%clk 0:00:40]}  Kf5 {[%clk 0:00:13]} 51. b5 {[%clk 0:00:39]}  a5 {[%clk 0:00:13]} 52. h5 {[%clk 0:00:37]}  Kg5 {[%clk 0:00:13]} 53. c6 {[%clk 0:00:37]} 1-0


[Site "https://www.chess.com"]

[Event "Titled Tuesday Blitz April 11 Early 2023"]
[White "Deng, Henry"]
[Black "Derichs, Roger"]
[WhiteFideId "30965454"]
[BlackFideId "4630076"]
[WhiteElo "2506"]
[BlackElo "2381"]
[Result "1-0"]
[Round "07"]
[TimeControl "180+2"]
[Date "2023.04.11"]
[WhiteClock "0:02:21"]
[BlackClock "0:01:39"]

1. e4 {[%clk 0:03:00]}  e6 {[%clk 0:02:59]} 2. d4 {[%clk 0:03:00]}  d5 {[%clk 0:02:55]} 3. Nd2 {[%clk 0:03:00]}  c5 {[%clk 0:02:53]} 4. Ngf3 {[%clk 0:02:58]}  Nc6 {[%clk 0:02:53]} 5. exd5 {[%clk 0:02:57]}  exd5 {[%clk 0:02:54]} 6. Bb5 {[%clk 0:02:57]}  cxd4 {[%clk 0:02:55]} 7. O-O {[%clk 0:02:56]}  Bd6 {[%clk 0:02:55]} 8. Re1+ {[%clk 0:02:55]}  Ne7 {[%clk 0:02:54]} 9. Nxd4 {[%clk 0:02:55]}  O-O {[%clk 0:02:54]} 10. N2f3 {[%clk 0:02:53]}  Bc7 {[%clk 0:02:53]} 11. h3 {[%clk 0:02:49]}  Qd6 {[%clk 0:02:51]} 12. c3 {[%clk 0:02:47]}  Nf5 {[%clk 0:02:44]} 13. Bg5 {[%clk 0:02:37]}  f6 {[%clk 0:02:28]} 14. Nxf5 {[%clk 0:02:33]}  Bxf5 {[%clk 0:02:26]} 15. Bh4 {[%clk 0:02:34]}  Bb6 {[%clk 0:02:11]} 16. Kh1 {[%clk 0:02:28]}  Qc5 {[%clk 0:02:04]} 17. Ba4 {[%clk 0:02:26]}  Be4 {[%clk 0:01:47]} 18. Bb3 {[%clk 0:02:23]}  Bc7 {[%clk 0:01:39]} 19. Rxe4 {[%clk 0:02:21]} 1-0


[Site "https://www.chess.com"]

[Event "Titled Tuesday Blitz April 11 Early 2023"]
[White "Leenhouts, Koen"]
[Black "Ruiz Aguilar, Pablo Alexander"]
[WhiteFideId "1008439"]
[BlackFideId "4401352"]
[WhiteElo "2409"]
[BlackElo "2138"]
[Result "0-1"]
[Round "07"]
[TimeControl "180+2"]
[Date "2023.04.11"]
[WhiteClock "0:00:05"]
[BlackClock "0:00:13"]

1. e4 {[%clk 0:02:56]}  c5 {[%clk 0:02:59]} 2. Nf3 {[%clk 0:02:55]}  e6 {[%clk 0:03:00]} 3. g3 {[%clk 0:02:53]}  Nc6 {[%clk 0:02:59]} 4. Bg2 {[%clk 0:02:53]}  g6 {[%clk 0:02:59]} 5. d4 {[%clk 0:02:50]}  Bg7 {[%clk 0:02:53]} 6. d5 {[%clk 0:02:49]}  Nd4 {[%clk 0:02:53]} 7. O-O {[%clk 0:02:37]}  d6 {[%clk 0:02:52]} 8. Nxd4 {[%clk 0:02:26]}  cxd4 {[%clk 0:02:51]} 9. c3 {[%clk 0:02:26]}  dxc3 {[%clk 0:02:42]} 10. Nxc3 {[%clk 0:02:27]}  Ne7 {[%clk 0:02:41]} 11. Bg5 {[%clk 0:02:21]}  h6 {[%clk 0:02:41]} 12. Be3 {[%clk 0:02:20]}  O-O {[%clk 0:02:28]} 13. Qd2 {[%clk 0:02:16]}  Kh7 {[%clk 0:02:27]} 14. dxe6 {[%clk 0:02:12]}  Bxe6 {[%clk 0:02:22]} 15. Rad1 {[%clk 0:02:10]}  Nc6 {[%clk 0:02:08]} 16. Qxd6 {[%clk 0:02:06]}  Qa5 {[%clk 0:02:09]} 17. Qc5 {[%clk 0:01:57]}  Qxc5 {[%clk 0:01:50]} 18. Bxc5 {[%clk 0:01:56]}  Rfc8 {[%clk 0:01:50]} 19. Nd5 {[%clk 0:01:46]}  Bxb2 {[%clk 0:01:43]} 20. Rb1 {[%clk 0:01:28]}  Bg7 {[%clk 0:01:27]} 21. Rxb7 {[%clk 0:01:23]}  Rab8 {[%clk 0:01:28]} 22. Rxb8 {[%clk 0:01:15]}  Rxb8 {[%clk 0:01:27]} 23. a3 {[%clk 0:00:37]}  Rb3 {[%clk 0:01:21]} 24. Rd1 {[%clk 0:00:34]}  a5 {[%clk 0:01:14]} 25. Bf1 {[%clk 0:00:29]}  Ne5 {[%clk 0:01:04]} 26. Nf4 {[%clk 0:00:28]}  Bg4 {[%clk 0:00:57]} 27. Be2 {[%clk 0:00:28]}  Bxe2 {[%clk 0:00:44]} 28. Nxe2 {[%clk 0:00:29]}  Nd3 {[%clk 0:00:41]} 29. Nd4 {[%clk 0:00:24]}  Nxc5 {[%clk 0:00:40]} 30. Nxb3 {[%clk 0:00:23]}  Nxb3 {[%clk 0:00:41]} 31. Rd7 {[%clk 0:00:21]}  Kg8 {[%clk 0:00:39]} 32. a4 {[%clk 0:00:19]}  Nc5 {[%clk 0:00:34]} 33. Rd5 {[%clk 0:00:18]}  Bf8 {[%clk 0:00:32]} 34. e5 {[%clk 0:00:15]}  Nxa4 {[%clk 0:00:29]} 35. Rxa5 {[%clk 0:00:15]}  Nc3 {[%clk 0:00:29]} 36. f4 {[%clk 0:00:14]}  Bb4 {[%clk 0:00:25]} 37. Ra8+ {[%clk 0:00:14]}  Kg7 {[%clk 0:00:25]} 38. Kg2 {[%clk 0:00:15]}  Nd5 {[%clk 0:00:24]} 39. Ra7 {[%clk 0:00:13]}  Ne3+ {[%clk 0:00:20]} 40. Kf3 {[%clk 0:00:13]}  Nf5 {[%clk 0:00:17]} 41. e6 {[%clk 0:00:13]}  Nd4+ {[%clk 0:00:18]} 42. Ke4 {[%clk 0:00:11]}  Nxe6 {[%clk 0:00:18]} 43. h4 {[%clk 0:00:07]}  Bc5 {[%clk 0:00:19]} 44. Rb7 {[%clk 0:00:06]}  h5 {[%clk 0:00:18]} 45. Kf3 {[%clk 0:00:07]}  Bd6 {[%clk 0:00:18]} 46. Rd7 {[%clk 0:00:06]}  Bf8 {[%clk 0:00:17]} 47. Rb7 {[%clk 0:00:05]}  Nd4+ {[%clk 0:00:17]} 48. Ke4 {[%clk 0:00:05]}  Nf5 {[%clk 0:00:17]} 49. Kf3 {[%clk 0:00:04]}  Kf6 {[%clk 0:00:18]} 50. Rd7 {[%clk 0:00:04]}  Ke6 {[%clk 0:00:17]} 51. Ra7 {[%clk 0:00:05]}  Bc5 {[%clk 0:00:18]} 52. Ra6+ {[%clk 0:00:06]}  Bd6 {[%clk 0:00:17]} 53. Rb6 {[%clk 0:00:04]}  Kd5 {[%clk 0:00:16]} 54. Rb5+ {[%clk 0:00:03]}  Kc6 {[%clk 0:00:15]} 55. Rb1 {[%clk 0:00:03]}  Bc5 {[%clk 0:00:15]} 56. Rc1 {[%clk 0:00:03]}  Kd5 {[%clk 0:00:15]} 57. Rd1+ {[%clk 0:00:03]}  Ke6 {[%clk 0:00:15]} 58. Kg2 {[%clk 0:00:04]}  Ne3+ {[%clk 0:00:13]} 59. Kf3 {[%clk 0:00:05]}  Nxd1 {[%clk 0:00:13]} 60. g4 {[%clk 0:00:05]}  Nc3 {[%clk 0:00:13]} 0-1


[Site "https://www.chess.com"]